[Event "November 21 Early 2023"]
[Site "https://www.chess.com"]
[Date "2023.11.21"]
[Round "3"]
[White "Tsyhanchuk, Stanislav"]
[Black "WindWhistler11"]
[Result "0-1"]
[Board "137"]
[TimeControl "180+1"]
[WhiteFideId "13505130"]
[WhiteElo "2173"]
[BlackElo "2585"]
[WhiteTeam "BLR"]
[WhiteClock "0:00:08"]
[BlackClock "0:00:13"]

1. e4 {[%clk 0:03:00]}  e6 {[%clk 0:03:00]} 2. d4 {[%clk 0:03:00]}  d5 {[%clk 0:03:00]} 3. Nc3 {[%clk 0:03:01]}  Bb4 {[%clk 0:03:00]} 4. e5 {[%clk 0:03:00]}  Ne7 {[%clk 0:03:00]} 5. a3 {[%clk 0:02:59]}  Bxc3+ {[%clk 0:02:58]} 6. bxc3 {[%clk 0:03:00]}  c5 {[%clk 0:02:59]} 7. Bd3 {[%clk 0:02:58]}  c4 {[%clk 0:02:53]} 8. Be2 {[%clk 0:02:57]}  Qa5 {[%clk 0:02:53]} 9. Bd2 {[%clk 0:02:57]}  Qa4 {[%clk 0:02:52]} 10. f4 {[%clk 0:02:55]}  Nbc6 {[%clk 0:02:46]} 11. Nf3 {[%clk 0:02:55]}  Bd7 {[%clk 0:02:45]} 12. O-O {[%clk 0:02:54]}  O-O-O {[%clk 0:02:44]} 13. Qb1 {[%clk 0:02:35]}  Rdf8 {[%clk 0:02:31]} 14. Qb2 {[%clk 0:02:35]}  b6 {[%clk 0:02:17]} 15. Rfb1 {[%clk 0:02:34]}  h6 {[%clk 0:02:06]} 16. Qb5 {[%clk 0:02:06]}  Nxe5 {[%clk 0:01:27]} 17. Qb4 {[%clk 0:01:54]}  Nxf3+ {[%clk 0:01:14]} 18. Bxf3 {[%clk 0:01:55]}  Qxb4 {[%clk 0:01:09]} 19. axb4 {[%clk 0:01:52]}  Kb7 {[%clk 0:00:55]} 20. b5 {[%clk 0:01:51]}  Nf5 {[%clk 0:00:54]} 21. g3 {[%clk 0:01:44]}  Nd6 {[%clk 0:00:53]} 22. Rb4 {[%clk 0:01:32]}  Bxb5 {[%clk 0:00:43]} 23. Bc1 {[%clk 0:01:28]}  Bc6 {[%clk 0:00:39]} 24. Ba3 {[%clk 0:01:21]}  Rd8 {[%clk 0:00:37]} 25. Rab1 {[%clk 0:01:18]}  Kc7 {[%clk 0:00:30]} 26. Re1 {[%clk 0:01:12]}  Nb5 {[%clk 0:00:25]} 27. Bc1 {[%clk 0:00:27]}  a5 {[%clk 0:00:23]} 28. Rb1 {[%clk 0:00:27]}  Nxc3 {[%clk 0:00:23]} 29. Ra1 {[%clk 0:00:27]}  Nb5 {[%clk 0:00:21]} 30. Bd2 {[%clk 0:00:25]}  Nxd4 {[%clk 0:00:20]} 31. Bd1 {[%clk 0:00:20]}  Nb5 {[%clk 0:00:20]} 32. Be3 {[%clk 0:00:19]}  Ra8 {[%clk 0:00:18]} 33. Bf2 {[%clk 0:00:19]}  Rhb8 {[%clk 0:00:18]} 34. f5 {[%clk 0:00:19]}  exf5 {[%clk 0:00:16]} 35. Re7+ {[%clk 0:00:19]}  Kd8 {[%clk 0:00:13]} 36. Rxf7 {[%clk 0:00:19]}  Nd6 {[%clk 0:00:09]} 37. Rxg7 {[%clk 0:00:18]}  Be8 {[%clk 0:00:09]} 38. Bd4 {[%clk 0:00:17]}  Rb7 {[%clk 0:00:07]} 39. Bf6+ {[%clk 0:00:16]}  Kc8 {[%clk 0:00:08]} 40. Rg8 {[%clk 0:00:15]}  Kd7 {[%clk 0:00:08]} 41. c3 {[%clk 0:00:14]}  Ke6 {[%clk 0:00:08]} 42. Bd4 {[%clk 0:00:14]}  Nb5 {[%clk 0:00:09]} 43. Rh8 {[%clk 0:00:12]}  Nxd4 {[%clk 0:00:10]} 44. Rxh6+ {[%clk 0:00:12]}  Ke5 {[%clk 0:00:09]} 45. cxd4+ {[%clk 0:00:13]}  Kxd4 {[%clk 0:00:10]} 46. Bf3 {[%clk 0:00:13]}  Kc5 {[%clk 0:00:10]} 47. Rd1 {[%clk 0:00:13]}  Rd8 {[%clk 0:00:10]} 48. Rh5 {[%clk 0:00:13]}  Bc6 {[%clk 0:00:10]} 49. Rxf5 {[%clk 0:00:12]}  b5 {[%clk 0:00:11]} 50. Rf6 {[%clk 0:00:12]}  b4 {[%clk 0:00:11]} 51. Re1 {[%clk 0:00:11]}  b3 {[%clk 0:00:11]} 52. Ree6 {[%clk 0:00:10]}  Rb6 {[%clk 0:00:12]} 53. Re1 {[%clk 0:00:08]}  a4 {[%clk 0:00:12]} 54. Rb1 {[%clk 0:00:09]}  a3 {[%clk 0:00:12]} 55. Rf4 {[%clk 0:00:07]}  a2 {[%clk 0:00:12]} 56. Re1 {[%clk 0:00:08]}  b2 {[%clk 0:00:12]} 57. Bg4 {[%clk 0:00:07]}  c3 {[%clk 0:00:12]} 58. Rff1 {[%clk 0:00:08]}  c2 {[%clk 0:00:12]} 59. Bf5 {[%clk 0:00:09]}  b1=Q {[%clk 0:00:12]} 60. Bxc2 {[%clk 0:00:08]}  Qxc2 {[%clk 0:00:12]} 61. Rc1 {[%clk 0:00:09]}  Rb2 {[%clk 0:00:12]} 62. Rxc2+ {[%clk 0:00:08]}  Rxc2 {[%clk 0:00:13]} 63. Ra1 {[%clk 0:00:08]}  Rb8 {[%clk 0:00:13]} 64. h3 {[%clk 0:00:07]}  Rbb2 {[%clk 0:00:13]} 65. Rb1 {[%clk 0:00:08]}  axb1=Q# {[%clk 0:00:13]} 0-1

[Event "November 21 Early 2023"]
[Site "https://www.chess.com"]
[Date "2023.11.21"]
[Round "3"]
[White "Gundam, Rohit"]
[Black "gueraumasague"]
[Result "0-1"]
[Board "138"]
[TimeControl "180+1"]
[WhiteFideId "75002809"]
[WhiteElo "2413"]
[BlackElo "2585"]
[WhiteTeam "USA"]
[WhiteClock "0:00:01"]
[BlackClock "0:01:23"]

1. d4 {[%clk 0:02:52]}  g6 {[%clk 0:03:00]} 2. Nf3 {[%clk 0:02:52]}  Nf6 {[%clk 0:03:01]} 3. c4 {[%clk 0:02:51]}  Bg7 {[%clk 0:03:00]} 4. Nc3 {[%clk 0:02:52]}  d6 {[%clk 0:03:00]} 5. e4 {[%clk 0:02:50]}  O-O {[%clk 0:03:00]} 6. h3 {[%clk 0:02:50]}  c5 {[%clk 0:02:53]} 7. d5 {[%clk 0:02:49]}  e6 {[%clk 0:02:54]} 8. Be3 {[%clk 0:02:48]}  exd5 {[%clk 0:02:51]} 9. exd5 {[%clk 0:02:49]}  Re8 {[%clk 0:02:50]} 10. Bd3 {[%clk 0:02:48]}  Rxe3+ {[%clk 0:02:49]} 11. fxe3 {[%clk 0:02:49]}  Nbd7 {[%clk 0:02:47]} 12. O-O {[%clk 0:02:49]}  Qe7 {[%clk 0:02:47]} 13. Qd2 {[%clk 0:02:27]}  Nh5 {[%clk 0:02:46]} 14. Rae1 {[%clk 0:02:25]}  Ne5 {[%clk 0:02:44]} 15. Nxe5 {[%clk 0:01:39]}  Bxe5 {[%clk 0:02:45]} 16. Rf3 {[%clk 0:01:38]}  Bd7 {[%clk 0:02:39]} 17. Ref1 {[%clk 0:01:38]}  f5 {[%clk 0:02:31]} 18. Ne2 {[%clk 0:01:14]}  Re8 {[%clk 0:02:26]} 19. e4 {[%clk 0:00:46]}  f4 {[%clk 0:01:41]} 20. Nxf4 {[%clk 0:00:39]}  Qg5 {[%clk 0:01:41]} 21. Qf2 {[%clk 0:00:25]}  Nxf4 {[%clk 0:01:39]} 22. Rxf4 {[%clk 0:00:24]}  Bd4 {[%clk 0:01:39]} 23. Qxd4 {[%clk 0:00:15]}  cxd4 {[%clk 0:01:40]} 24. R1f3 {[%clk 0:00:13]}  Bxh3 {[%clk 0:01:36]} 25. g3 {[%clk 0:00:06]}  h5 {[%clk 0:01:26]} 26. Kh2 {[%clk 0:00:05]}  Bg4 {[%clk 0:01:23]} 27. Rf2 {[%clk 0:00:05]}  h4 {[%clk 0:01:23]} 28. b3 {[%clk 0:00:03]}  hxg3+ {[%clk 0:01:22]} 29. Kxg3 {[%clk 0:00:01]}  Be2+ {[%clk 0:01:23]} 0-1

[Event "November 21 Early 2023"]
[Site "https://www.chess.com"]
[Date "2023.11.21"]
[Round "3"]
[White "Mushini Ajay"]
[Black "Pak, Yevgeniy"]
[Result "1-0"]
[Board "139"]
[TimeControl "180+1"]
[WhiteFideId "35066188"]
[BlackFideId "14201712"]
[WhiteElo "2162"]
[BlackElo "2320"]
[WhiteTeam "IND"]
[BlackTeam "KAZ"]
[WhiteClock "0:01:34"]
[BlackClock "0:01:23"]

1. e4 {[%clk 0:03:00]}  e5 {[%clk 0:02:58]} 2. Nf3 {[%clk 0:03:01]}  Nf6 {[%clk 0:02:56]} 3. Nxe5 {[%clk 0:03:00]}  d6 {[%clk 0:02:55]} 4. Nf3 {[%clk 0:03:00]}  Nxe4 {[%clk 0:02:55]} 5. Nc3 {[%clk 0:03:01]}  Nf6 {[%clk 0:02:49]} 6. d4 {[%clk 0:03:00]}  d5 {[%clk 0:02:48]} 7. Bd3 {[%clk 0:02:59]}  Bd6 {[%clk 0:02:46]} 8. h3 {[%clk 0:02:58]}  h6 {[%clk 0:02:45]} 9. O-O {[%clk 0:02:58]}  O-O {[%clk 0:02:44]} 10. Re1 {[%clk 0:02:54]}  c6 {[%clk 0:02:43]} 11. Ne5 {[%clk 0:02:51]}  Nbd7 {[%clk 0:02:39]} 12. Bf4 {[%clk 0:02:48]}  Qc7 {[%clk 0:02:32]} 13. Qf3 {[%clk 0:02:42]}  a5 {[%clk 0:02:10]} 14. Re2 {[%clk 0:02:37]}  b5 {[%clk 0:02:04]} 15. Bxb5 {[%clk 0:02:32]}  cxb5 {[%clk 0:02:05]} 16. Nxb5 {[%clk 0:02:31]}  Qb6 {[%clk 0:02:04]} 17. Nxd7 {[%clk 0:02:18]}  Bxd7 {[%clk 0:01:56]} 18. Nxd6 {[%clk 0:02:17]}  Qxb2 {[%clk 0:01:46]} 19. Rae1 {[%clk 0:02:11]}  Qxa2 {[%clk 0:01:44]} 20. Bxh6 {[%clk 0:02:07]}  a4 {[%clk 0:01:32]} 21. Re5 {[%clk 0:01:41]}  Kh7 {[%clk 0:01:29]} 22. Bxg7 {[%clk 0:01:39]}  Kxg7 {[%clk 0:01:26]} 23. Rg5+ {[%clk 0:01:38]}  Kh7 {[%clk 0:01:26]} 24. Qxf6 {[%clk 0:01:36]}  Rg8 {[%clk 0:01:23]} 25. Rh5# {[%clk 0:01:34]} 1-0

[Event "November 21 Early 2023"]
[Site "https://www.chess.com"]
[Date "2023.11.21"]
[Round "3"]
[White "Kim, Sergey"]
[Black "Marchesich, Giovanni"]
[Result "1-0"]
[Board "140"]
[TimeControl "180+1"]
[WhiteFideId "13700570"]
[BlackFideId "2824790"]
[WhiteElo "2583"]
[BlackElo "2198"]
[WhiteTeam "KAZ"]
[BlackTeam "ITA"]
[WhiteClock "0:01:44"]
[BlackClock "0:01:54"]

1. d4 {[%clk 0:02:57]}  Nf6 {[%clk 0:02:59]} 2. c4 {[%clk 0:02:57]}  c5 {[%clk 0:03:00]} 3. d5 {[%clk 0:02:57]}  b5 {[%clk 0:03:00]} 4. cxb5 {[%clk 0:02:57]}  a6 {[%clk 0:03:01]} 5. b6 {[%clk 0:02:57]}  e6 {[%clk 0:03:01]} 6. Nc3 {[%clk 0:02:58]}  exd5 {[%clk 0:02:53]} 7. Nxd5 {[%clk 0:02:59]}  Bb7 {[%clk 0:02:53]} 8. Nc7+ {[%clk 0:02:55]}  Ke7 {[%clk 0:02:45]} 9. Bf4 {[%clk 0:02:43]}  d5 {[%clk 0:02:41]} 10. Nxa8 {[%clk 0:02:35]}  Bxa8 {[%clk 0:02:41]} 11. Bc7 {[%clk 0:02:33]}  Qc8 {[%clk 0:02:39]} 12. Nf3 {[%clk 0:02:27]}  Nc6 {[%clk 0:02:39]} 13. e3 {[%clk 0:02:24]}  Ke8 {[%clk 0:02:25]} 14. Be2 {[%clk 0:02:22]}  Rg8 {[%clk 0:02:22]} 15. O-O {[%clk 0:02:20]}  g5 {[%clk 0:02:23]} 16. Qa4 {[%clk 0:02:16]}  g4 {[%clk 0:02:12]} 17. Ne5 {[%clk 0:02:15]}  Qe6 {[%clk 0:02:12]} 18. Bxa6 {[%clk 0:02:10]}  Bh6 {[%clk 0:01:57]} 19. Bb5 {[%clk 0:02:05]}  Kf8 {[%clk 0:01:57]} 20. Qxa8+ {[%clk 0:02:01]}  Kg7 {[%clk 0:01:57]} 21. Qxc6 {[%clk 0:02:01]}  Qf5 {[%clk 0:01:57]} 22. Bd3 {[%clk 0:01:54]}  Ne4 {[%clk 0:01:57]} 23. Bxe4 {[%clk 0:01:50]}  dxe4 {[%clk 0:01:58]} 24. Qd7 {[%clk 0:01:44]}  g3 {[%clk 0:01:54]} 1-0

[Event "November 21 Early 2023"]
[Site "https://www.chess.com"]
[Date "2023.11.21"]
[Round "3"]
[White "ploxoi"]
[Black "NelsonLinda"]
[Result "1-0"]
[Board "141"]
[TimeControl "180+1"]
[WhiteElo "2408"]
[BlackElo "2582"]
[WhiteClock "0:01:09"]
[BlackClock "0:00:03"]

1. d4 {[%clk 0:03:00]}  Nf6 {[%clk 0:02:54]} 2. c4 {[%clk 0:03:01]}  g6 {[%clk 0:02:51]} 3. Nc3 {[%clk 0:03:00]}  Bg7 {[%clk 0:02:50]} 4. e4 {[%clk 0:03:01]}  d6 {[%clk 0:02:48]} 5. Nf3 {[%clk 0:03:01]}  O-O {[%clk 0:02:46]} 6. Be2 {[%clk 0:03:02]}  Na6 {[%clk 0:02:45]} 7. O-O {[%clk 0:03:01]}  e5 {[%clk 0:02:45]} 8. d5 {[%clk 0:03:02]}  Nc5 {[%clk 0:02:44]} 9. Qc2 {[%clk 0:03:02]}  a5 {[%clk 0:02:44]} 10. Bg5 {[%clk 0:03:03]}  h6 {[%clk 0:02:37]} 11. Be3 {[%clk 0:03:03]}  Qe7 {[%clk 0:02:26]} 12. Nd2 {[%clk 0:03:02]}  Ng4 {[%clk 0:02:20]} 13. Bxg4 {[%clk 0:03:02]}  Bxg4 {[%clk 0:02:20]} 14. f3 {[%clk 0:03:00]}  Bd7 {[%clk 0:02:21]} 15. b3 {[%clk 0:03:01]}  f5 {[%clk 0:02:20]} 16. a3 {[%clk 0:03:00]}  f4 {[%clk 0:02:19]} 17. Bf2 {[%clk 0:03:00]}  g5 {[%clk 0:02:15]} 18. b4 {[%clk 0:03:01]}  Na6 {[%clk 0:02:15]} 19. Rab1 {[%clk 0:02:56]}  axb4 {[%clk 0:02:12]} 20. axb4 {[%clk 0:02:57]}  b6 {[%clk 0:02:13]} 21. Na4 {[%clk 0:02:45]}  g4 {[%clk 0:02:07]} 22. c5 {[%clk 0:02:45]}  bxc5 {[%clk 0:02:03]} 23. bxc5 {[%clk 0:02:40]}  g3 {[%clk 0:02:00]} 24. hxg3 {[%clk 0:02:37]}  fxg3 {[%clk 0:02:01]} 25. Be3 {[%clk 0:02:29]}  Qh4 {[%clk 0:01:57]} 26. Rfc1 {[%clk 0:02:27]}  Qh2+ {[%clk 0:01:52]} 27. Kf1 {[%clk 0:02:27]}  Bh3 {[%clk 0:01:25]} 28. Nc4 {[%clk 0:02:25]}  Rxf3+ {[%clk 0:01:22]} 29. Ke1 {[%clk 0:02:24]}  Bxg2 {[%clk 0:01:11]} 30. Qe2 {[%clk 0:02:19]}  Qh3 {[%clk 0:00:42]} 31. Kd2 {[%clk 0:02:14]}  Nxc5 {[%clk 0:00:35]} 32. Nxc5 {[%clk 0:02:12]}  dxc5 {[%clk 0:00:35]} 33. Rg1 {[%clk 0:02:08]}  Ra2+ {[%clk 0:00:29]} 34. Rb2 {[%clk 0:02:08]}  Rxb2+ {[%clk 0:00:22]} 35. Nxb2 {[%clk 0:02:09]}  Rxe3 {[%clk 0:00:22]} 36. Kxe3 {[%clk 0:01:55]}  Bh1 {[%clk 0:00:20]} 37. Nd3 {[%clk 0:01:40]}  c4 {[%clk 0:00:17]} 38. Ne1 {[%clk 0:01:37]}  Bf8 {[%clk 0:00:17]} 39. Qxc4 {[%clk 0:01:30]}  g2+ {[%clk 0:00:15]} 40. Kf2 {[%clk 0:01:29]}  Qh4+ {[%clk 0:00:11]} 41. Ke2 {[%clk 0:01:30]}  Qg4+ {[%clk 0:00:11]} 42. Nf3 {[%clk 0:01:30]}  h5 {[%clk 0:00:05]} 43. d6+ {[%clk 0:01:29]}  Kh8 {[%clk 0:00:04]} 44. dxc7 {[%clk 0:01:27]}  Qc8 {[%clk 0:00:05]} 45. Nxe5 {[%clk 0:01:24]}  Bd6 {[%clk 0:00:04]} 46. Nf7+ {[%clk 0:01:24]}  Kg7 {[%clk 0:00:05]} 47. Nxd6 {[%clk 0:01:24]}  Qg4+ {[%clk 0:00:05]} 48. Kd2 {[%clk 0:01:18]}  Qf4+ {[%clk 0:00:05]} 49. Kc2 {[%clk 0:01:15]}  Qf2+ {[%clk 0:00:05]} 50. Kb3 {[%clk 0:01:08]}  Qe3+ {[%clk 0:00:05]} 51. Qc3+ {[%clk 0:01:08]}  Qxc3+ {[%clk 0:00:03]} 52. Kxc3 {[%clk 0:01:09]} 1-0

[Event "November 21 Early 2023"]
[Site "https://www.chess.com"]
[Date "2023.11.21"]
[Round "3"]
[White "Bettalli, Francesco"]
[Black "Nguyen, Thi Mai Hung"]
[Result "1-0"]
[Board "142"]
[TimeControl "180+1"]
[WhiteFideId "2816453"]
[BlackFideId "12401676"]
[WhiteElo "2226"]
[BlackElo "2067"]
[WhiteTeam "ITA"]
[BlackTeam "VIE"]
[WhiteClock "0:00:26"]
[BlackClock "0:00:00"]

1. d4 {[%clk 0:03:00]}  d5 {[%clk 0:02:59]} 2. Nc3 {[%clk 0:03:00]}  Nf6 {[%clk 0:02:58]} 3. Bf4 {[%clk 0:03:01]}  c6 {[%clk 0:02:56]} 4. f3 {[%clk 0:02:57]}  Bf5 {[%clk 0:02:46]} 5. g4 {[%clk 0:02:48]}  Bg6 {[%clk 0:02:38]} 6. h4 {[%clk 0:02:48]}  h5 {[%clk 0:02:38]} 7. g5 {[%clk 0:02:48]}  Nfd7 {[%clk 0:02:38]} 8. e4 {[%clk 0:02:47]}  e6 {[%clk 0:02:37]} 9. Qd2 {[%clk 0:02:37]}  Bb4 {[%clk 0:02:34]} 10. Bd3 {[%clk 0:02:32]}  c5 {[%clk 0:02:13]} 11. a3 {[%clk 0:02:29]}  Bxc3 {[%clk 0:02:06]} 12. Qxc3 {[%clk 0:02:27]}  dxe4 {[%clk 0:01:52]} 13. Bxe4 {[%clk 0:02:09]}  Bxe4 {[%clk 0:01:48]} 14. fxe4 {[%clk 0:02:10]}  cxd4 {[%clk 0:01:45]} 15. Qxd4 {[%clk 0:02:10]}  e5 {[%clk 0:01:41]} 16. Qc3 {[%clk 0:01:56]}  exf4 {[%clk 0:01:38]} 17. Qxg7 {[%clk 0:01:56]}  Qa5+ {[%clk 0:01:33]} 18. c3 {[%clk 0:01:41]}  Qe5 {[%clk 0:01:32]} 19. Qxe5+ {[%clk 0:01:41]}  Nxe5 {[%clk 0:01:32]} 20. Nh3 {[%clk 0:01:41]}  f3 {[%clk 0:01:04]} 21. Kf2 {[%clk 0:01:34]}  Nbc6 {[%clk 0:01:03]} 22. Nf4 {[%clk 0:01:32]}  O-O-O {[%clk 0:01:00]} 23. Nd5 {[%clk 0:01:30]}  Rd6 {[%clk 0:00:43]} 24. Rad1 {[%clk 0:01:26]}  Rhd8 {[%clk 0:00:42]} 25. Kg3 {[%clk 0:01:17]}  Kb8 {[%clk 0:00:38]} 26. Rhf1 {[%clk 0:01:06]}  Ne7 {[%clk 0:00:34]} 27. Kf4 {[%clk 0:00:55]}  Nxd5+ {[%clk 0:00:29]} 28. exd5 {[%clk 0:00:48]}  Rxd5 {[%clk 0:00:27]} 29. Rxd5 {[%clk 0:00:47]}  Rxd5 {[%clk 0:00:28]} 30. Ke4 {[%clk 0:00:48]}  Rb5 {[%clk 0:00:26]} 31. a4 {[%clk 0:00:46]}  Rc5 {[%clk 0:00:13]} 32. b4 {[%clk 0:00:46]}  Rxc3 {[%clk 0:00:12]} 33. Kxe5 {[%clk 0:00:46]}  Rb3 {[%clk 0:00:09]} 34. Kf6 {[%clk 0:00:28]}  Rxb4 {[%clk 0:00:06]} 35. Kxf7 {[%clk 0:00:28]}  Rf4+ {[%clk 0:00:05]} 36. Ke7 {[%clk 0:00:26]}  f2 {[%clk 0:00:04]} 37. g6 {[%clk 0:00:26]}  Rg4 {[%clk 0:00:01]} 38. Kf7 {[%clk 0:00:26]}  Rf4+ {[%clk 0:00:00]} 39. Kg8 {[%clk 0:00:26]} 1-0

[Event "November 21 Early 2023"]
[Site "https://www.chess.com"]
[Date "2023.11.21"]
[Round "3"]
[White "Gallegos Diaz, Carlos Alberto"]
[Black "Predator0608"]
[Result "0-1"]
[Board "143"]
[TimeControl "180+1"]
[WhiteFideId "3900886"]
[WhiteElo "2362"]
[BlackElo "2580"]
[WhiteTeam "VEN"]
[WhiteClock "0:00:00"]
[BlackClock "0:00:16"]

1. e4 {[%clk 0:03:00]}  c5 {[%clk 0:02:57]} 2. Nf3 {[%clk 0:03:00]}  d6 {[%clk 0:02:57]} 3. Be2 {[%clk 0:02:59]}  Nf6 {[%clk 0:02:57]} 4. d3 {[%clk 0:02:57]}  g6 {[%clk 0:02:57]} 5. O-O {[%clk 0:02:57]}  Bg7 {[%clk 0:02:58]} 6. h3 {[%clk 0:02:57]}  O-O {[%clk 0:02:58]} 7. c3 {[%clk 0:02:57]}  Nc6 {[%clk 0:02:58]} 8. Re1 {[%clk 0:02:57]}  e5 {[%clk 0:02:58]} 9. a3 {[%clk 0:02:56]}  d5 {[%clk 0:02:57]} 10. Nbd2 {[%clk 0:02:55]}  Re8 {[%clk 0:02:56]} 11. b4 {[%clk 0:02:53]}  b6 {[%clk 0:02:10]} 12. Bb2 {[%clk 0:02:44]}  d4 {[%clk 0:02:06]} 13. cxd4 {[%clk 0:02:42]}  Nxd4 {[%clk 0:02:00]} 14. Bxd4 {[%clk 0:02:17]}  cxd4 {[%clk 0:02:01]} 15. b5 {[%clk 0:02:15]}  Nd7 {[%clk 0:01:42]} 16. a4 {[%clk 0:02:00]}  Nc5 {[%clk 0:01:36]} 17. Nb3 {[%clk 0:01:47]}  Bf8 {[%clk 0:01:32]} 18. Nfd2 {[%clk 0:01:40]}  a5 {[%clk 0:01:14]} 19. Nxc5 {[%clk 0:01:11]}  Bxc5 {[%clk 0:01:15]} 20. Bg4 {[%clk 0:01:02]}  Bb4 {[%clk 0:01:11]} 21. Rf1 {[%clk 0:00:31]}  Bxg4 {[%clk 0:01:09]} 22. hxg4 {[%clk 0:00:30]}  Rc8 {[%clk 0:00:40]} 23. Nf3 {[%clk 0:00:23]}  Rc3 {[%clk 0:00:38]} 24. Qd2 {[%clk 0:00:19]}  Qe7 {[%clk 0:00:37]} 25. Qh6 {[%clk 0:00:19]}  Rec8 {[%clk 0:00:36]} 26. Ng5 {[%clk 0:00:17]}  f6 {[%clk 0:00:37]} 27. Nh3 {[%clk 0:00:15]}  Rxd3 {[%clk 0:00:36]} 28. g5 {[%clk 0:00:15]}  Bd2 {[%clk 0:00:29]} 29. Qh4 {[%clk 0:00:12]}  Bxg5 {[%clk 0:00:20]} 30. Qg4 {[%clk 0:00:13]}  Rdc3 {[%clk 0:00:20]} 31. f4 {[%clk 0:00:12]}  exf4 {[%clk 0:00:20]} 32. Rae1 {[%clk 0:00:10]}  Re3 {[%clk 0:00:19]} 33. Rxe3 {[%clk 0:00:08]}  fxe3 {[%clk 0:00:19]} 34. Nf4 {[%clk 0:00:09]}  Re8 {[%clk 0:00:17]} 35. Nd5 {[%clk 0:00:08]}  Qxe4 {[%clk 0:00:18]} 36. Qd7 {[%clk 0:00:07]}  Qe6 {[%clk 0:00:16]} 37. Qc6 {[%clk 0:00:01]}  e2 {[%clk 0:00:16]} 38. Re1 {[%clk 0:00:00]}  d3 {[%clk 0:00:16]} 0-1

[Event "November 21 Early 2023"]
[Site "https://www.chess.com"]
[Date "2023.11.21"]
[Round "3"]
[White "ChainedDowntohell"]
[Black "secrethawk1"]
[Result "1-0"]
[Board "144"]
[TimeControl "180+1"]
[WhiteElo "2578"]
[BlackElo "2389"]
[WhiteClock "0:00:17"]
[BlackClock "0:00:00"]

1. d4 {[%clk 0:03:00]}  Nf6 {[%clk 0:02:58]} 2. c4 {[%clk 0:02:58]}  e6 {[%clk 0:02:55]} 3. Nf3 {[%clk 0:02:58]}  b6 {[%clk 0:02:54]} 4. a3 {[%clk 0:02:54]}  a5 {[%clk 0:02:50]} 5. Nc3 {[%clk 0:02:51]}  Bb7 {[%clk 0:02:49]} 6. Bg5 {[%clk 0:02:48]}  Be7 {[%clk 0:02:47]} 7. Bxf6 {[%clk 0:02:47]}  Bxf6 {[%clk 0:02:48]} 8. e4 {[%clk 0:02:47]}  d6 {[%clk 0:02:37]} 9. Bd3 {[%clk 0:02:42]}  Nd7 {[%clk 0:02:35]} 10. Qe2 {[%clk 0:02:37]}  e5 {[%clk 0:02:28]} 11. d5 {[%clk 0:02:15]}  Nc5 {[%clk 0:02:19]} 12. Bc2 {[%clk 0:02:14]}  a4 {[%clk 0:02:19]} 13. h4 {[%clk 0:02:11]}  h6 {[%clk 0:02:16]} 14. g4 {[%clk 0:02:09]}  g6 {[%clk 0:02:16]} 15. O-O-O {[%clk 0:01:56]}  Be7 {[%clk 0:02:10]} 16. Kb1 {[%clk 0:01:51]}  Bc8 {[%clk 0:01:58]} 17. Rdg1 {[%clk 0:01:47]}  Bd7 {[%clk 0:01:53]} 18. Ne1 {[%clk 0:01:43]}  Bxh4 {[%clk 0:01:41]} 19. Nd3 {[%clk 0:01:28]}  Nb3 {[%clk 0:01:32]} 20. Qd1 {[%clk 0:01:12]}  Nd4 {[%clk 0:01:28]} 21. Bxa4 {[%clk 0:01:07]}  Bxa4 {[%clk 0:01:28]} 22. Nxa4 {[%clk 0:01:08]}  Bf6 {[%clk 0:01:13]} 23. Nc3 {[%clk 0:01:05]}  g5 {[%clk 0:01:01]} 24. Ne2 {[%clk 0:01:03]}  Nf3 {[%clk 0:00:48]} 25. Rg3 {[%clk 0:00:50]}  Nh4 {[%clk 0:00:45]} 26. Nc3 {[%clk 0:00:36]}  Bg7 {[%clk 0:00:41]} 27. Qe2 {[%clk 0:00:34]}  Qd7 {[%clk 0:00:33]} 28. Nb4 {[%clk 0:00:33]}  f6 {[%clk 0:00:12]} 29. Qd2 {[%clk 0:00:32]}  Qd8 {[%clk 0:00:06]} 30. f3 {[%clk 0:00:33]}  Qd7 {[%clk 0:00:05]} 31. Nd1 {[%clk 0:00:33]}  Ng6 {[%clk 0:00:05]} 32. Ne3 {[%clk 0:00:33]}  Nh4 {[%clk 0:00:05]} 33. Rgh3 {[%clk 0:00:29]}  Kf8 {[%clk 0:00:04]} 34. Nc6 {[%clk 0:00:29]}  Qf7 {[%clk 0:00:03]} 35. Qb4 {[%clk 0:00:24]}  Rc8 {[%clk 0:00:02]} 36. Qa4 {[%clk 0:00:23]}  Qd7 {[%clk 0:00:02]} 37. Qa6 {[%clk 0:00:21]}  Re8 {[%clk 0:00:02]} 38. b3 {[%clk 0:00:20]}  Qc8 {[%clk 0:00:02]} 39. Qb5 {[%clk 0:00:18]}  Qd7 {[%clk 0:00:01]} 40. Kb2 {[%clk 0:00:18]}  Qc8 {[%clk 0:00:01]} 41. b4 {[%clk 0:00:18]}  Qd7 {[%clk 0:00:01]} 42. c5 {[%clk 0:00:18]}  bxc5 {[%clk 0:00:02]} 43. bxc5 {[%clk 0:00:19]}  dxc5 {[%clk 0:00:02]} 44. Qd3 {[%clk 0:00:18]}  Kg8 {[%clk 0:00:01]} 45. Qc3 {[%clk 0:00:18]}  Rf8 {[%clk 0:00:00]} 46. Qxc5 {[%clk 0:00:17]} 1-0

[Event "November 21 Early 2023"]
[Site "https://www.chess.com"]
[Date "2023.11.21"]
[Round "3"]
[White "Demin, Vladimir"]
[Black "MIss_MIaMI"]
[Result "1-0"]
[Board "145"]
[TimeControl "180+1"]
[WhiteFideId "4167457"]
[WhiteElo "2573"]
[BlackElo "2364"]
[WhiteTeam "RUS"]
[WhiteClock "0:00:03"]
[BlackClock "0:00:00"]

1. d4 {[%clk 0:03:00]}  c5 {[%clk 0:02:56]} 2. dxc5 {[%clk 0:02:56]}  Na6 {[%clk 0:02:55]} 3. e4 {[%clk 0:02:51]}  Nxc5 {[%clk 0:02:54]} 4. Nc3 {[%clk 0:02:51]}  d6 {[%clk 0:02:40]} 5. Be3 {[%clk 0:02:47]}  Qa5 {[%clk 0:02:39]} 6. Qd2 {[%clk 0:02:45]}  Nf6 {[%clk 0:02:37]} 7. f3 {[%clk 0:02:43]}  a6 {[%clk 0:02:17]} 8. a3 {[%clk 0:02:42]}  Qc7 {[%clk 0:02:17]} 9. g4 {[%clk 0:02:37]}  e6 {[%clk 0:02:07]} 10. Nge2 {[%clk 0:02:31]}  Be7 {[%clk 0:02:02]} 11. Nd4 {[%clk 0:02:30]}  Nfd7 {[%clk 0:01:57]} 12. h4 {[%clk 0:02:27]}  b5 {[%clk 0:01:53]} 13. f4 {[%clk 0:02:25]}  Bb7 {[%clk 0:01:53]} 14. Bg2 {[%clk 0:02:24]}  Rc8 {[%clk 0:01:45]} 15. O-O-O {[%clk 0:02:16]}  Nb6 {[%clk 0:01:44]} 16. Qf2 {[%clk 0:02:10]}  Nc4 {[%clk 0:01:38]} 17. f5 {[%clk 0:02:06]}  e5 {[%clk 0:01:28]} 18. g5 {[%clk 0:01:25]}  exd4 {[%clk 0:01:18]} 19. Bxd4 {[%clk 0:01:26]}  f6 {[%clk 0:00:48]} 20. h5 {[%clk 0:01:11]}  Ne5 {[%clk 0:00:41]} 21. h6 {[%clk 0:01:08]}  gxh6 {[%clk 0:00:41]} 22. gxf6 {[%clk 0:01:04]}  Bxf6 {[%clk 0:00:41]} 23. Kb1 {[%clk 0:01:03]}  Bg5 {[%clk 0:00:35]} 24. Bf3 {[%clk 0:00:51]}  Qe7 {[%clk 0:00:22]} 25. Bh5+ {[%clk 0:00:46]}  Kd8 {[%clk 0:00:22]} 26. Bxc5 {[%clk 0:00:42]}  Rxc5 {[%clk 0:00:14]} 27. Qxc5 {[%clk 0:00:40]}  Nc4 {[%clk 0:00:13]} 28. Qd4 {[%clk 0:00:32]}  Bf6 {[%clk 0:00:12]} 29. Qd3 {[%clk 0:00:21]}  Kc8 {[%clk 0:00:12]} 30. Bf3 {[%clk 0:00:19]}  Be5 {[%clk 0:00:10]} 31. Rhg1 {[%clk 0:00:15]}  Rd8 {[%clk 0:00:09]} 32. Ka2 {[%clk 0:00:12]}  Kb8 {[%clk 0:00:09]} 33. b3 {[%clk 0:00:12]}  Nb6 {[%clk 0:00:08]} 34. Nd5 {[%clk 0:00:10]}  Nxd5 {[%clk 0:00:07]} 35. exd5 {[%clk 0:00:11]}  Rc8 {[%clk 0:00:07]} 36. Rde1 {[%clk 0:00:10]}  Qc7 {[%clk 0:00:05]} 37. Bd1 {[%clk 0:00:08]}  Ka8 {[%clk 0:00:05]} 38. Ref1 {[%clk 0:00:05]}  Qf7 {[%clk 0:00:05]} 39. f6 {[%clk 0:00:05]}  Rc5 {[%clk 0:00:06]} 40. Rg7 {[%clk 0:00:04]}  Qf8 {[%clk 0:00:04]} 41. Qxh7 {[%clk 0:00:04]}  Bxd5 {[%clk 0:00:02]} 42. f7 {[%clk 0:00:03]}  Bxg7 {[%clk 0:00:00]} 43. Qxg7 {[%clk 0:00:03]} 1-0